Workbook

Sheet Inputs
C1: Inputs
C2: deltaflowC2 Selector 3.07
C4: Project Details
C5: Customer line 1
C6: Customer line 2
C7: Customer line 3
C8: Serial Number
C9: Tag Number
C10: Comments
K11: Primärelement | L11: 0
C12: Primary Element | M12: Nr | N12: ID | O12: id | P12: Beta | Q12: C | R12: KEPS | S12: dpLoss Faktor | T12: Comment | U12: 0
C13: Meter Type DFC2- | D13: P10 | L13: P10 | M13: 1 | N13: 10000 | O13: 25 | S13: =0.623*N109 -> 0.2094122544 | T13: P10 insertion probe type for pipes >25mm | U13: 0
C14: =VLOOKUP(D13,L13:T21,9,FALSE) -> P10 insertion probe type for pipes >25mm | L14: V40(20mm) | M14: =M13+1 -> 2 | N14: 35 | O14: 20 | P14: =O14/N14 -> 0.5714285714 | Q14: 0.942 | R14: 780 | S14: 0.4554 | T14: R 1 1/2" male venturi type ID 35x20x35mm | U14: 0
C15: Pipe Inside Diameter | D15: 50 | E15: [mm] | L15: V25(15mm) | M15: =M14+1 -> 3 | N15: 25 | O15: 15 | P15: =O15/N15 -> 0.6 | Q15: 0.981 | R15: 765 | S15: 0.528 | T15: R 1" male venturi type ID 25x15x25mm | U15: 0
C16: Neck Diameter | D16: 22.5 | E16: [mm] | L16: V20(10mm) | M16: 4 | N16: 15 | O16: 10 | P16: 0.6666666667 | Q16: 0.948 | R16: 740 | S16: 0.561 | T16: R 3/4" male venturi type ID 15x10x15mm | U16: 0
C17: Probe Resistance Zeta z | D17: 2.83748 | E17: [-] | L17: V20(8mm) | M17: 5 | N17: 15 | O17: 8 | P17: 0.5333333333 | Q17: 0.939 | R17: 631 | S17: 0.711 | T17: R 3/4" male venturi type ID 15x8x15mm | U17: 0
C18: Flow Coefficient C | D18: 0.97398 | E18: [-] | L18: V20(6mm) | M18: =M17+1 -> 6 | N18: 15 | O18: 6 | P18: 0.4 | Q18: 0.9285 | R18: 570 | S18: 0.827 | T18: R 3/4" male venturi type ID 15x6x15mm | U18: 0
C19: =IF(D15<O22,"Inside diameter too small, please check",IF(D15>N22,"Inside Diameter is big, please check","")) ->  | L19: V20(4mm) | M19: 7 | N19: 15 | O19: 4 | P19: 0.2666666667 | Q19: 0.9012 | R19: 581 | S19: 0.877 | T19: R 3/4" male venturi type ID 15x4x15mm | U19: 0
C20: ImprooveIT Factor | D20: 1 | E20: [-] | L20: pitot tube | M20: 8 | N20: 10000 | O20: 1 | S20: 0 | T20: other pitot tube, design from manufacturer needed | U20: 0
C21: =IF(D20<>1,"ImprooveIT is by standard 1,000. This is a overall calibration factor of your meter. Please check if this is correct","") ->  | L21: venturi/orifice | M21: 9 | N21: 10000 | O21: 1 | P21: =D16/D15 -> 0.45 | Q21: =D18 -> 0.97398 | S21: 0 | T21: other venturi/orifice, design from manufacturer needed | U21: 0
K22: Aktuelle Auswahl | L22: =VLOOKUP($D13,$L13:$S21,1,FALSE) -> P10 | M22: =VLOOKUP($D13,$L13:$S21,2,FALSE) -> 1 | N22: =VLOOKUP($D13,$L13:$S21,3,FALSE) -> 10000 | O22: =VLOOKUP($D13,$L13:$S21,4,FALSE) -> 25 | P22: =VLOOKUP($D13,$L13:$S21,5,FALSE) -> 0 | Q22: =VLOOKUP($D13,$L13:$S21,6,FALSE) -> 0 | R22: =VLOOKUP($D13,$L13:$S21,7,FALSE) -> 0 | S22: =VLOOKUP($D13,$L13:$S21,8,FALSE) -> 0.2094122544
C23: Medium | D23: other gas | E23: =N44 -> - | K23: Typ | M23: =IF(M22=1,1,IF(M22=8,1,IF(M22=9,2,3))) -> 1
C24: Norm Density | D24: 12321 | E24: [kg/Nm³] | F24: 0°C, 1013,25 hPa
C25: Process Data
C26: Design Pressure | D26: 100 | E26: [kPa]
C27: Design Temperature | D27: 19 | E27: [°C] | K27: Medium | L27: 0
C28: Design Flow | D28: 450 | E28: [Nm3/h]@0°C/1013,25mbar | F28: =IF(D28>L122,"Too high","") -> Too high | N28: Formel | O28: Molare Masse | P28: Schmelzpunkt | Q28: Siedepunkt | R28: Kritische Temperatur | S28: Protoscher drtuck | T28: Azentrischer Faktor | U28: Normdichte | V28: Visk Parameter A | W28: Visk Parameter B | X28: Isentropencoeffizient | Y28: 0
C29: Design Expansionnumber | D29: 0.957 | E29: [-] | O29: g/mol | P29: °C | Q29: °C | R29: °C | S29: bar | T29: [-] | U29: kg/Nm³ | V29: 0
C30: Design Differential Pressure | D30: 71.052 | E30: =E34 -> [mbar] | L30: Air | M30: 1 | N30: - | O30: 28.96 | P30: -200 | Q30: -194,35 | R30: -141.65 | S30: 36.6 | U30: 1.2929 | V30: 150.3 | W30: 123.6 | X30: 1.4015
L31: other gas | M31: 2 | N31: -
L32: Ammoniak | M32: 3 | N32: NH3 | O32: 17.031 | P32: -77.72 | Q32: -33.35 | R32: 132.3 | S32: 113 | T32: 0.25 | U32: 0.769 | V32: 159.006226 | W32: 513 | X32: 1.3031
C33: Results | L33: Argon | M33: 4 | N33: Ar | O33: 39.948 | P33: -189.3 | Q33: -185.87 | R33: -122.43 | S33: 48.74 | T33: 0.0001 | U33: 1.7838 | V33: 231.48 | W33: 228.26 | X33: 1.6855
C34: dp Design | D34: 71.052 | E34: [mbar] | L34: iso-Butane | M34: 5 | N34: C4H10 | O34: 58.12 | P34: -159.4 | Q34: -11.73 | R34: 134.98 | S34: 37.2 | T34: 0.183 | U34: 2.697 | V34: 85.79 | W34: 299.02 | X34: 1.0714
C35: Expansion Number | D35: 0.957 | E35: [-] | L35: Helium | M35: 6 | N35: He | O35: 4.0026 | P35: -271.15 | Q35: -268.934 | R35: -267.95 | S35: 2.275 | T35: -0.365 | U35: 0.1785 | V35: 136 | W35: 55 | X35: 1.6674
C36: pressure Loss | D36: =S22 -> 0.2094122544 | E36: =IF(D36=0,"unknown","") ->  | L36: Carbon Dioxide | M36: 7 | N36: CO2 | O36: 44.01 | P36: -56.56 | Q36: -78.5 | R36: 31 | S36: 73.8 | T36: 0.239 | U36: 1.9769 | V36: 165.5 | W36: 274 | X36: 1.2898
C37: =IF(L143>20000,"DesignFlow is too high or wrong p&T! Please select other Type or Diameter",IF(L143<200,"DesignFlow is too low, please select other Type or diameter!",IF(L143<500,"DesignFlow is low, reduced accuracy!",""))) -> DesignFlow is too high or wrong p&T! Please select other Type or Diameter | L37: Carbon Monoxide | M37: 8 | N37: CO | O37: 28.01 | P37: -205.1 | Q37: -191.5 | R37: -140.2 | S37: 35 | T37: 0.066 | U37: 1.2505 | V37: 86.72 | W37: 131.74 | X37: 1.4008
L38: Methane | M38: 9 | N38: CH4 | O38: 16.0426 | P38: -182.48 | Q38: -161.49 | R38: -82.1 | S38: 46.4 | T38: 0.011 | U38: 0.718 | V38: 88.953 | W38: 125 | X38: 1.306
C39: Meter options | L39: Neon | M39: 10 | N39: Ne | O39: 20.1796 | P39: -248.61 | Q39: -246 | R39: -228.7 | S39: 27.3 | U39: 0.8999 | V39: 201 | W39: 35 | X39: 1.6677
C40: I/O Variant | D40: Outputs 4..20mA and 0..10VDC (4 pin M12 Plug) | E40: =VLOOKUP(D40,L171:M175,2,FALSE) -> IO | L40: Propane | M40: 11 | N40: C3H8 | O40: 44.096 | P40: -187.69 | Q40: -42.04 | R40: 96.8 | S40: 42.5 | T40: 0.153 | U40: 2.011 | V40: 107 | W40: 376 | X40: 1.1193
C41: Display | D41: integrated display / keypad | E41: =VLOOKUP(D41,L177:M178,2,FALSE) -> D1 | L41: Oxygene | M41: 12 | N41: O2 | O41: 31.9988 | P41: -218.65 | Q41: -182.96 | R41: -118.57 | S41: 50.4 | U41: 1.429 | V41: 174.7 | W41: 138 | X41: 1.3692
C42: Accuracy | D42: High Precision 1% o.S. 1:10 incl 5 point calibration | E42: =VLOOKUP(D42,L180:M181,2,FALSE) -> DH | L42: Nitrogene | M42: 13 | N42: N2 | O42: 28.013 | P42: -209.8 | Q42: -195.81 | R42: -146.85 | S42: 34 | T42: 0.039 | U42: 1.2503 | V42: 137.8 | W42: 103 | X42: 1.421
C43: Accessories | D43: none | E43: =VLOOKUP(D43,L183:M186,2,FALSE) -> - | L43: Hydrogene | M43: 14 | N43: H2 | R43: -239.96 | S43: 13.15 | T43: -0.216 | U43: 0.0899 | V43: 73.57 | W43: 122 | X43: 1.4069
C44: Typecode | D44: =D13&"-"&E40&"-"&E41&"-"&E42&"-"&E43 -> P10-IO-D1-DH-- | K44: Aktuelle Auswahl | L44: =VLOOKUP($D23,$L30:$X43,1,FALSE) -> other gas | M44: =VLOOKUP($D23,$L30:$X43,2,FALSE) -> 2 | N44: =VLOOKUP(D23,L30:X44,3,FALSE) -> - | O44: =VLOOKUP($D23,$L30:$X43,4,FALSE) -> 0 | P44: =VLOOKUP($D23,$L30:$X43,5,FALSE) -> 0 | Q44: =VLOOKUP($D23,$L30:$X43,6,FALSE) -> 0 | R44: =VLOOKUP($D23,$L30:$X43,7,FALSE) -> 0 | S44: =VLOOKUP($D23,$L30:$X43,8,FALSE) -> 0 | T44: =VLOOKUP($D23,$L30:$X43,9,FALSE) -> 0 | U44: =IF(D23<>"other gas",VLOOKUP($D23,$L30:$X43,10,FALSE),D24) -> 12321 | V44: =VLOOKUP($D23,$L30:$X43,11,FALSE) -> 0 | W44: =VLOOKUP($D23,$L30:$X43,12,FALSE) -> 0 | X44: =VLOOKUP($D23,$L30:$X43,13,FALSE) -> 0
K45: Berechnungen | L45: Dichte bei Designpunkt | O45: =U44*N57/101325*273.15/N66 -> 11369.06264 | P45: kg/m³
C46: Meter Settings | L46: Dichte bei Auslgungspunkt | O46: =U44*L102/101325*273.15/L103 -> 194558.1051 | P46: kg/m³
C47: Flow Unit / Time Basis | D47: =L96 -> [Nm3/h]@0°C/1013,25mbar
C48: Flowspan | D48: =L122 -> 26.81576601 | K48: Druck | R48: Differenzdruck | S48: 0
C49: Temp. Unit | D49: =E27 -> [°C] | N49: Faktor zu Pa | U49: Faktor zu Pa | V49: 0
C50: Press. Unit | D50: =E26 -> [kPa] | L50: [mbar abs] | M50: 1 | N50: 100 | S50: [mbar] | T50: 1 | U50: 100
C51: T. type | D51: =IF(M22=1,"Pitot",IF(M22<8,"Venturi","PT1000/please check")) -> Pitot | L51: [bar abs] | M51: 2 | N51: 100000 | S51: [bar] | T51: 2 | U51: 100000
C52: dp press. Unit | D52: =E34 -> [mbar] | L52: [kPa] | M52: 3 | N52: 1000 | S52: [kPa] | T52: 3 | U52: 1000
C53: Damping | D53: select [0..99] sek | L53: [hPa] | M53: 4 | N53: 100 | S53: [hPa] | T53: 4 | U53: 100
C54: Current Out | D54: select [Flow/dp/p/T] | L54: [PSI] | M54: 5 | N54: 6894.76 | S54: [PSI] | T54: 5 | U54: 6894.76
C55: Voltage Out | D55: select [Flow/dp/p/T] | L55: [Torr] | M55: 6 | N55: 133.322 | S55: [Torr] | T55: 6 | U55: 133.322
C56: Modbus Brate | D56: select [4800..38400] | K56: Aktuelle Auswahl | L56: =VLOOKUP($E26,$L50:$N55,1,FALSE) -> [kPa] | M56: =VLOOKUP($E26,$L50:$N55,2,FALSE) -> 3 | N56: =VLOOKUP($E26,$L50:$N55,3,FALSE) -> 1000 | R56: Aktuelle Auswahl | S56: =VLOOKUP($E34,$S50:$U55,1,FALSE) -> [mbar] | T56: =VLOOKUP($E34,$S50:$U55,2,FALSE) -> 1 | U56: =VLOOKUP($E34,$S50:$U55,3,FALSE) -> 100
C57: Pulse Length | D57: select[2, 10, 100] mS | K57: Berechnungen | L57: Designdruck in Pa | N57: =D26*N56 -> 100000 | O57: Pa | R57: Berechnungen | S57: Designdp in Pa | U57: =D30*U56 -> 7105.2 | V57: Pa | W57: 0
C58: Pulse Count | D58: select [0..9] p/unit
C59: 0-Suppression | D59: select [0..20%] of Flowspan
C60: KEPS | D60: =L134 -> 2001.491624 | K60: Temperatur | L60: 0
C61: K Analog | D61: =K125 -> 314042.8655 | L61: [°C] | M61: 1 | N61: 0 | O61: 1
L62: [K] | M62: 2 | N62: -273.15 | O62: 1
L63: [°F] | M63: 3 | N63: -32 | O63: =5/9 -> 0.5555555556
K64: Aktuelle Auswahl | L64: =VLOOKUP($E27,$L61:$O63,1,FALSE) -> [°C] | M64: =VLOOKUP($E27,$L61:$O63,2,FALSE) -> 1 | N64: =VLOOKUP($E27,$L61:$O63,3,FALSE) -> 0 | O64: =VLOOKUP($E27,$L61:$O63,4,FALSE) -> 1
K65: Berechnungen | L65: Designtemperatur in °C | N65: =(D27+N64)*O64 -> 19 | O65: °C
L66: Designtemperatur in K | N66: =N65+273.15 -> 292.15 | O66: K
K68: Durchfluss | M68: Nr | N68: ConvFactor | O68: Vol(2) or Mass (1) | P68: 0
L69: [kg/s] | M69: 1 | N69: 1 | O69: 1
L70: [kg/min] | M70: 2 | N70: =1/60 -> 0.01666666667 | O70: 1
L71: [kg/h] | M71: 3 | N71: =1/3600 -> 0.0002777777778 | O71: 1
L72: [t/s] | M72: 4 | N72: 1000 | O72: 1
L73: [t/min] | M73: 5 | N73: =N72/60 -> 16.66666667 | O73: 1
L74: [t/h] | M74: 6 | N74: =N73/60 -> 0.2777777778 | O74: 1
L75: [g/s] | M75: 7 | N75: 0.001 | O75: 1
L76: [g/min] | M76: 8 | N76: =N75/60 -> 1.666666667e-05 | O76: 1
L77: [g/h] | M77: 9 | N77: =N76/60 -> 2.777777778e-07 | O77: 1
L78: [Nm3/s]@0°C/1013,25mbar | M78: 10 | N78: 1 | O78: 1
L79: [Nm3/min]@0°C/1013,25mbar | M79: 11 | N79: =1/60 -> 0.01666666667 | O79: 1
L80: [Nm3/h]@0°C/1013,25mbar | M80: 12 | N80: =1/3600 -> 0.0002777777778 | O80: 1
L81: [Nl/s]@0°C/1013,25mbar | M81: 13 | N81: =N78/1000 -> 0.001 | O81: 1
L82: [Nl/min]@0°C/1013,25mbar | M82: 14 | N82: =N79/1000 -> 1.666666667e-05 | O82: 1
L83: [Nl/h]@0°C/1013,25mbar | M83: 15 | N83: 2.777777778e-07 | O83: 1
L84: [cft/s]@process p&T | M84: 16 | N84: 0.0283168 | O84: 2
L85: [cft/min]@process p&T | M85: 17 | N85: =N84/60 -> 0.0004719466667 | O85: 2
L86: [cft/h]@process p&T | M86: 18 | N86: =N85/60 -> 7.865777778e-06 | O86: 2
L87: [l/s]@process p&T | M87: 19 | N87: =1/1000 -> 0.001 | O87: 2
L88: [l/min]@process p&T | M88: 20 | N88: =1/60000 -> 1.666666667e-05 | O88: 2
L89: [l/h]@process p&T | M89: 21 | N89: =1/3600000 -> 2.777777778e-07 | O89: 2
L90: [m3/s]@process p&T | M90: 22 | N90: 1 | O90: 2
L91: [m3/min]@process p&T | M91: 23 | N91: =1/60 -> 0.01666666667 | O91: 2
L92: [m3/h]@process p&T | M92: 24 | N92: =1/3600 -> 0.0002777777778 | O92: 2
K96: Aktuelle Auswahl | L96: =VLOOKUP($E28,$L69:$N92,1,FALSE) -> [Nm3/h]@0°C/1013,25mbar | M96: =VLOOKUP($E28,$L69:$N92,2,FALSE) -> 12 | N96: =VLOOKUP($E28,$L69:$N92,3,FALSE) -> 0.0002777777778 | O96: =VLOOKUP($E28,$L69:$O92,4,FALSE) -> 1
K97: Berechnungen | L97: Durchfluss | M97: =IF(M96<10,D28*N96,IF(M96<16,D28*N96*U44,D28*O45*N96)) -> 1540.125 | N97: [kg/s]
M98: 4
K100: Auslegungspunkt DFC2 Elektronik | L100: =IF(O$96=1,P100,N100) -> Massflow (1) | N100: VolFlow (2) | P100: Massflow (1)
K101: dp | L101: =IF(O$96=1,P101,N101) -> 20000 | M101: Pa | N101: 20000 | O101: Pa | P101: 20000
K102: pabs | L102: 1600000 | M102: Pa | N102: 100000 | O102: Pa | P102: 1600000
K103: T | L103: 273.15 | M103: K | N103: 273.15 | O103: K | P103: 273.15
K104: KEPS | L104: 0 | M104: [-] | N104: 0 | O104: [-] | P104: 0
K105: FLOWMAX [Digitalwert] | L105: 18714 | M105: [-] | N105: 11249 | O105: [-] | P105: 18714
K108: Berechnungen Sonden | V108: Epsilon Auslegung | W108: dp design (Epsiolon 1) Pa | X108: Epsilon Design | Y108: dploss
K109: P10 | M109: Blockage | N109: =IF(D15<30,(24*15)/(D15^2*PI()/4),((30*12)+(D15-30)*15)/(D15^2*PI()/4)) -> 0.3361352398 | O109: Kwert | P109: =7.4939*N109^4 - 6.262*N109^3 + 0.6605*N109^2 - 0.1878*N109 + 0.6605 -> 0.5298453346 | Q109: Zeta | R109: =1/P109^2 -> 3.56206443 | S109: KEPS | T109: =IF(U109>0,U109,2000-U109) -> 2001.491624 | U109: =1141.5*N109 - 385.19 -> -1.491623757 | V109: =1-U109*(L101/L102)*16000/4096^2 -> 1.000017782 | W109: =M97^2*R109*8/PI()^2/(D15/1000)^4/O45 -> 96382741.85 | X109: =1-U109*(W109/N57)*16000/4096^2 -> 2.371066928
K110: Andere Sonden | O110: Kwert | P110: =1/D17^0.5 -> 0.5936542694 | Q110: Zeta | R110: =D17 -> 2.83748 | S110: KEPS | T110: =(1-D29)*N57/U57*4096^2/16000 -> 634.5883015 | V110: =1-T110*(L101/L102)*16000/4096^2 -> 0.9924351179 | W110: =D$30*1000*D$29^2 -> 65072.90315 | X110: =D29 -> 0.957
K111: Andere Venturi/Blende | S111: KEPS | T111: =(1-D29)*N57/U57*4096^2/16000 -> 634.5883015 | V111: =1-T111*(L101/L102)*16000/4096^2 -> 0.9924351179 | W111: =D$30*1000*D$29^2 -> 65072.90315 | X111: =D29 -> 0.957
K112: V20-V40 | S112: KEPS | T112: =R22 -> 0 | V112: =1-T112*(L101/L102)*16000/4096^2 -> 1 | W112: =M97^2*(1-P22^4)*8/Q22^2/PI()^2/(O22/1000)^4/O45 ->  | X112: =1-T112*(W112/N57)*16000/4096^2 -> 
K115: Berechnung FlowSpan | L115: (Epsilon =1, gem HA)
N116: Usereinheit
K117: P10 | L117: =1/R109^0.5*PI()*(D15/1000)^2/4*1*(2*L101*O46)^0.5 -> 91.77695919 | M117: kg/s | N117: =IF(M$96<10,L117/N$96,IF(M$96<16,L117/N$96/U$44,L117/N$96/O46)) -> 26.81576601 | O117: =L$96 -> [Nm3/h]@0°C/1013,25mbar
K118: Andere Sonde | L118: =1/R110^0.5*PI()*(D15/1000)^2/4*1*(2*L101*O46)^0.5 -> 102.8295997 | M118: kg/s | N118: =IF(M$96<10,L118/N$96,IF(M$96<16,L118/N$96/U$44,L118/N$96/O46)) -> 30.04517156 | O118: =L$96 -> [Nm3/h]@0°C/1013,25mbar
K119: Andere Venturi | L119: =D18/(1-(D16/D15)^4)*PI()*(D16/1000)^2/4*1*(2*L101*O46)^0.5 -> 35.62409493 | M119: kg/s | N119: =IF(M$96<10,L119/N$96,IF(M$96<16,L119/N$96/U$44,L119/N$96/O46)) -> 10.40879326 | O119: [Nm3/h]@0°C/1013,25mbar
K120: V20-V40 | L120: =Q22/(1-P22^4)^0.5*PI()*(O22/1000)^2/4*1*(2*L101*O46)^0.5 -> 0 | M120: kg/s | N120: =IF(M$96<10,L120/N$96,IF(M$96<16,L120/N$96/U$44,L120/N$96/O46)) -> 0 | O120: [Nm3/h]@0°C/1013,25mbar
K122: FlowSpan | L122: =IF(M22=1,N117*D20,IF(M22=8,N118,IF(M22=9,N119*D20,N120*D20))) -> 26.81576601 | M122: =L96 -> [Nm3/h]@0°C/1013,25mbar
K124: Berechnung K Analog | L124: =1/R109^0.5*PI()*(D15/1000)^2/4/N$96 -> 3.745255974 | M124: K,Value
K125: =L105*D28/D48 -> 314042.8655
K127: Berechnung KEPS
K129: P10 | L129: =T109 -> 2001.491624
K130: Andere Sonde | L130: =(1-D$29)*N$57*4096^2/16000/U$57 -> 634.5883015
K131: Andere Venturi | L131: =(1-D$29)*N$57*4096^2/16000/U$57 -> 634.5883015
K132: V20-V40 | L132: =(1-V$112)*L$102*4096^2/16000/L$101 -> 0
K134: KEPS | L134: =IF(M22=1,L129,IF(M22=8,L130,IF(M22=9,L131,L132))) -> 2001.491624
K136: Berechnung dp Design
L137: dp[Pa] | M137: dp[Usereinheit] | O137: Expansionszahl
K138: P10 | L138: =M97^2*R109*8/PI()^2/(D15/1000)^4/O45/D20^2/X109^2 -> 17143979.98 | M138: =L138/U$56 -> 171439.7998 | N138: =E30 -> [mbar] | O138: =X109 -> 2.371066928
K139: Andere Sonden | L139: =M97^2*R110*8/PI()^2/(D15/1000)^4/O45/D20^2/X110^2 -> 83831346.06 | M139: =L139/U$56 -> 838313.4606 | N139: =N138 -> [mbar] | O139: =X110 -> 0.957
K140: Andere Venturi/Blende | L140: =M97^2*(1-(D16/D15)^4)*8/D18^2/PI()^2/(D16/1000)^4/D20^2/O45/X111^2 -> 728348573.7 | M140: =L140/U$56 -> 7283485.737 | N140: =N139 -> [mbar] | O140: =X111 -> 0.957
K141: V20-V40 | L141: =M97^2*(1-P22^4)*8/Q22^2/PI()^2/(O22/1000)^4/O45/X112^2/D20^2 ->  | M141: =L141/U$56 ->  | N141: =N140 -> [mbar] | O141: =X112 -> 
K143: dp | L143: =IF($M22=1,L138,IF($M22=8,L139,IF($M22=9,L140,L141))) -> 17143979.98 | M143: =IF($M22=1,M138,IF($M22=8,M139,IF($M22=9,M140,M141))) -> 171439.7998 | N143: =IF($M22=1,N138,IF($M22=8,N139,IF($M22=9,N140,N141))) -> [mbar] | O143: =IF($M22=1,O138,IF($M22=8,O139,IF($M22=9,O140,O141))) -> 2.371066928
K146: Berechnung Unsicherheit
K148: ="Flow "&E28 -> Flow [Nm3/h]@0°C/1013,25mbar | L148: dp [Pa] | M148: dp Fehler Nach Nullpunktabgleich | N148: Fehler durch dp | O148: Fehler durch Dichte und Primärelement mit Klaib | P148: Unsicherheit abs mit Kalbirierung | Q148: Unicherheit r.M. mit Kalibrierung | R148: dp Fehler ohne Kalibroierung | S148: Fehler durch dp | T148: Unsicherheit Abs ohne Kalibrierung | U148: Unsicherheit d.M. ohne Kalibrierung
K149: =D28 -> 450 | L149: =L143 -> 17143979.98 | M149: =L149*0.005+10 -> 85729.8999 | N149: =(1+M149/L149)^0.5-1 -> 0.002497173709 | O149: 0.0025 | P149: =O149+N149 -> 0.004997173709 | Q149: =P149*K149/K$149 -> 0.004997173709 | R149: =L149*0.01+30 -> 171469.7998 | S149: =(1+R149/L149)^0.5-1 -> 0.004988432712 | T149: =S149+0.02 -> 0.02498843271 | U149: =T149*K149/K$149 -> 0.02498843271
K150: =K149-(0.05*K$149) -> 427.5 | L150: =L$149*(K150/K$149)^2 -> 15472441.93 | M150: =L150*0.005+10 -> 77372.20966 | N150: =(1+M150/L150)^0.5-1 -> 0.002497205138 | O150: 0.0025 | P150: =O150+N150 -> 0.004997205138 | Q150: =P150*K150/K$149 -> 0.004747344882 | R150: 154754.4193 | S150: 0.004988526766 | T150: =S150+0.02 -> 0.02498852677 | U150: =T150*K150/K$149 -> 0.02373910043
K151: =K150-(0.05*K$149) -> 405 | L151: =L$149*(K151/K$149)^2 -> 13886623.78 | M151: 69443.11892 | N151: 0.00249724195 | O151: 0.0025 | P151: 0.00499724195 | Q151: 0.004497517755 | R151: 138896.2378 | S151: 0.004988636927 | T151: 0.02498863693 | U151: 0.02248977323
K152: 382.5 | L152: 12386525.54 | M152: 61942.62768 | N152: 0.002497285447 | O152: 0.0025 | P152: 0.004997285447 | Q152: 0.00424769263 | R152: 123895.2554 | S152: 0.004988767095 | T152: 0.02498876709 | U152: 0.02124045203
K153: 360 | L153: 10972147.19 | M153: 54870.73594 | N153: 0.002497337352 | O153: 0.0025 | P153: 0.004997337352 | Q153: 0.003997869882 | R153: 109751.4719 | S153: 0.004988922424 | T153: 0.02498892242 | U153: 0.01999113794
K154: 337.5 | L154: 9643488.739 | M154: 48227.44369 | N154: 0.002497399981 | O154: 0.0025 | P154: 0.004997399981 | Q154: 0.003748049986 | R154: 96464.88739 | S154: 0.004989109845 | T154: 0.02498910985 | U154: 0.01874183238
K155: 315 | L155: 8400550.19 | M155: 42012.75095 | N155: 0.002497476505 | O155: 0.0025 | P155: 0.004997476505 | Q155: 0.003498233553 | R155: 84035.5019 | S155: 0.004989338846 | T155: 0.02498933885 | U155: 0.01749253719
K156: 292.5 | L156: 7243331.542 | M156: 36226.65771 | N156: 0.002497571359 | O156: 0.0025 | P156: 0.004997571359 | Q156: 0.003248421383 | R156: 72463.31542 | S156: 0.004989622703 | T156: 0.0249896227 | U156: 0.01624325476
K157: 270 | L157: 6171832.793 | M157: 30869.16396 | N157: 0.002497690902 | O157: 0.0025 | P157: 0.004997690902 | Q157: 0.002998614541 | R157: 61748.32793 | S157: 0.004989980444 | T157: 0.02498998044 | U157: 0.01499398827
K158: 247.5 | L158: 5186053.944 | M158: 25940.26972 | N158: 0.002497844511 | O158: 0.0025 | P158: 0.004997844511 | Q158: 0.002748814481 | R158: 51890.53944 | S158: 0.004990440126 | T158: 0.02499044013 | U158: 0.01374474207
K159: 225 | L159: 4285994.995 | M159: 21439.97498 | N159: 0.002498046472 | O159: 0.0025 | P159: 0.004998046472 | Q159: 0.002499023236 | R159: 42889.94995 | S159: 0.004991044508 | T159: 0.02499104451 | U159: 0.01249552225
K160: 202.5 | L160: 3471655.946 | M160: 17368.27973 | N160: 0.002498319435 | O160: 0.0025 | P160: 0.004998319435 | Q160: 0.002249243746 | R160: 34746.55946 | S160: 0.004991861365 | T160: 0.02499186136 | U160: 0.01124633761
K161: 180 | L161: 2743036.797 | M161: 13725.18398 | N161: 0.002498701044 | O161: 0.0025 | P161: 0.004998701044 | Q161: 0.001999480418 | R161: 27460.36797 | S161: 0.004993003351 | T161: 0.02499300335 | U161: 0.00999720134
K162: 157.5 | L162: 2100137.548 | M162: 10510.68774 | N162: 0.002499257652 | O162: 0.0025 | P162: 0.004999257652 | Q162: 0.001749740178 | R162: 21031.37548 | S162: 0.00499466903 | T162: 0.02499466903 | U162: 0.00874813416
K163: 135 | L163: 1542958.198 | M163: 7724.790991 | N163: 0.00250011524 | O163: 0.0025 | P163: 0.00500011524 | Q163: 0.001500034572 | R163: 15459.58198 | S163: 0.004997235405 | T163: 0.0249972354 | U163: 0.007499170621
K164: 112.5 | L164: 1071498.749 | M164: 5367.493744 | N164: 0.002501537516 | O164: 0.0025 | P164: 0.005001537516 | Q164: 0.001250384379 | R164: 10744.98749 | S164: 0.005001491624 | T164: 0.02500149162 | U164: 0.006250372906
K165: 90 | L165: 685759.1992 | M165: 3438.795996 | N165: 0.002504155791 | O165: 0.0025 | P165: 0.005004155791 | Q165: 0.001000831158 | R165: 6887.591992 | S165: 0.005009326889 | T165: 0.02500932689 | U165: 0.005001865378
K166: 67.5 | L166: 385739.5496 | M166: 1938.697748 | N166: 0.002509812534 | O166: 0.0025 | P166: 0.005009812534 | Q166: 0.0007514718802 | R166: 3887.395496 | S166: 0.005026254724 | T166: 0.02502625472 | U166: 0.003753938209
K167: 45 | L167: 171439.7998 | M167: 867.198999 | N167: 0.002525974483 | O167: 0.0025 | P167: 0.005025974483 | Q167: 0.0005025974483 | R167: 1744.397998 | S167: 0.005074618393 | T167: 0.02507461839 | U167: 0.002507461839
K168: 22.5 | L168: 42859.94995 | M168: 224.2997498 | N168: 0.002613244502 | O168: 0.0025 | P168: 0.005113244502 | Q168: 0.0002556622251 | R168: 458.5994995 | S168: 0.005335742006 | T168: 0.02533574201 | U168: 0.0012667871
K171: IO | L171: Outputs 4..20mA and 0..10VDC (4 pin M12 Plug) | M171: IO
K172: CAN | L172: Can-Bus Version (VS, GND, CANHI, CANLO) (4 pin M12 Plug) | M172: CAN
K173: MOD | L173: MOD-Bus Version (VS, GND, A, B) (4 pin M12 Plug) | M173: MOD
K174: IO-MOD | L174: Outputs 4..20mA, 0..10VDC, Pulses, MOD-Bus (8 pin M12 Plug) | M174: IO-MOD
K175: IO-CAN | L175: Outputs 4..20mA, 0..10VDC, Pulses, CAN-Bus (8 pin M12 Plug) | M175: IO-CAN
K177: D0 | L177: no Display (settings by systec) o.R. | M177: D0
K178: D1 | L178: integrated display / keypad | M178: D1
K180: DS | L180: Standard 3% o.S. 1:5 | M180: DS
K181: DH | L181: High Precision 1% o.S. 1:10 incl 5 point calibration | M181: DH
L183: none | M183: -
K184: RSXX | L184: Hot Tap Accessorie for pipe dimesnions 45..335mm | M184: RSXX
K185: M12-4 | L185: M12 cable 1,5m 4pin | M185: M12-4
K186: M12-8 | L186: M12 cable 1,5m 8pin | M186: M12-8
K190: PinBelegung | M190: IO | N190: CAN | O190: MOD | P190: IO-MOD | Q190: IO-CAN
K191: =_xlfn.XLOOKUP(E$40,M$190:Q$190,M191:Q191) -> (brown) GND | L191: 1 | M191: (brown) GND | N191: (brown) GND | O191: (brown) GND | P191: (white) GND | Q191: (white) GND
K192: (white) 4..20mA | L192: 2 | M192: (white) 4..20mA | N192: (white) CAN hi | O192: (white) Modbus A | P192: (brown) 4..20mA | Q192: (brown) 4..20mA
K193: (blue) Supply | L193: 3 | M193: (blue) Supply | N193: (blue) Supply | O193: (blue) Supply | P193: (green) Supply | Q193: (green) Supply
K194: (black) 0..10VDC | L194: 4 | M194: (black) 0..10VDC | N194: (black) CAN low | O194: Modbus B | P194: (yellow) 0..10VDC | Q194: (yellow) 0..10VDC
K195: n.a. | L195: 5 | M195: n.a. | N195: n.a. | O195: n.a. | P195: (grey) Pulse + | Q195: (grey) Pulse +
K196: n.a. | L196: 6 | M196: n.a. | N196: n.a. | O196: n.a. | P196: (pink) Pulse - | Q196: (pink) Pulse -
K197: n.a. | L197: 7 | M197: n.a. | N197: n.a. | O197: n.a. | P197: (blue) Modbus A | Q197: (blue) CAN hi
K198: n.a. | L198: 8 | M198: n.a. | N198: n.a. | O198: n.a. | P198: (red) Modbus B | Q198: (red) CAN low

Sheet Output Protocol_D
B3: DFC2 Protokoll | F3: =TODAY() -> 2025-12-12
C4: Grundtyp | D4: Ausgänge | E4: Display | F4: Genauigkeit | G4: Zubehör | H4: thyssenkrupp Steel Europe AG 22363-02 DFC224260033
B5: DFC2 | C5: =Inputs!D13 -> P10 | D5: =Inputs!E40 -> IO | E5: =Inputs!E41 -> D1 | F5: =Inputs!E42 -> DH | G5: =Inputs!E43 -> - | H5: Min recommended diameter is 25mm, please use Venturi
B6: Gastyp | C6: =Inputs!D23 -> other gas | D6: =Inputs!E23 -> - | F6: =Inputs!D24 -> 12321 | G6: =Inputs!E24 -> [kg/Nm³] | H6: =Inputs!F24 -> 0°C, 1013,25 hPa
B7: Prozess Druck | E7: =Inputs!D26 -> 100 | F7: =Inputs!E26 -> [kPa] | H7: Pipe ID | I7: =Inputs!D15 -> 50 | J7: =Inputs!E15 -> [mm]
B8: Prozess Temperatur | E8: =Inputs!D27 -> 19 | F8: =Inputs!E27 -> [°C]
B9: Prozess max Durchfluss | E9: =Inputs!D28 -> 450 | F9: =Inputs!E28 -> [Nm3/h]@0°C/1013,25mbar
B10: ImprooveIT | E10: =Inputs!D20 -> 1 | F10: [-]
B12: Ergebnisse Auslegung | D12: =CELL("dateiname") -> C:\Users\OliverB\Desktop\[deltaflowC2-SelectorV3_08.xlsx]Inputs
I14: Pin | J14: IO
B15: Max möglicher Durchfluss [MF] | E15: =Inputs!L122 -> 26.81576601 | F15: =F9 -> [Nm3/h]@0°C/1013,25mbar | I15: 1 | J15: =Inputs!K191 -> (brown) GND
B16: Design Durchfluss [DF] | E16: =E9 -> 450 | F16: =F15 -> [Nm3/h]@0°C/1013,25mbar | I16: 2 | J16: =Inputs!K192 -> (white) 4..20mA
B17: Design Druck | E17: =E7 -> 100 | F17: bar abs | I17: 3 | J17: =Inputs!K193 -> (blue) Supply
B18: Design Temperatur | E18: =E8 -> 19 | F18: °C | I18: 4 | J18: =Inputs!K194 -> (black) 0..10VDC
B19: Design Dichte | E19: =Inputs!O45 -> 11369.06264 | F19: kg/m³ | I19: 5 | J19: =Inputs!K195 -> n.a.
B20: dp am Designpunkt | E20: =Inputs!D34 -> 71.052 | F20: =Inputs!D52 -> [mbar] | I20: 6 | J20: =Inputs!K196 -> n.a.
B21: Druckverlust am Auslgungspunkt | E21: =IF(E20*Inputs!D36>0,E20*Inputs!D36,"-") -> 14.8791595 | F21: =F20 -> [mbar] | I21: 7 | J21: =Inputs!K197 -> n.a.
B22: Epsilon am Designpunkt | E22: =Inputs!D35 -> 0.957 | F22: [-] | I22: 8 | J22: =Inputs!K198 -> n.a.
B23: =Inputs!C37 -> DesignFlow is too high or wrong p&T! Please select other Type or Diameter
B24: Geräteeinstellungen (Option D1)
B25: =Inputs!C47 -> Flow Unit / Time Basis | C25: =Inputs!D47 -> [Nm3/h]@0°C/1013,25mbar | E25: =Inputs!C53 -> Damping | G25: =Inputs!D53 -> select [0..99] sek | I25: =Inputs!C59 -> 0-Suppression | J25: select [0..20%] o.S.
B26: =Inputs!C48 -> Flowspan | C26: =Inputs!D48 -> 26.81576601 | D26: =C25 -> [Nm3/h]@0°C/1013,25mbar | E26: =Inputs!C54 -> Current Out | G26: =Inputs!D54 -> select [Flow/dp/p/T] | I26: =Inputs!C60 -> KEPS | J26: =Inputs!D60 -> 2001.491624
B27: =Inputs!C49 -> Temp. Unit | C27: =Inputs!D49 -> [°C] | E27: =Inputs!C55 -> Voltage Out | G27: =Inputs!D55 -> select [Flow/dp/p/T] | I27: =Inputs!C61 -> K Analog | J27: =Inputs!D61 -> 314042.8655
B28: =Inputs!C50 -> Press. Unit | C28: =Inputs!D50 -> [kPa] | E28: =Inputs!C56 -> Modbus Brate | G28: =Inputs!D56 -> select [4800..38400]
B29: =Inputs!C51 -> T. type | C29: =Inputs!D51 -> Pitot | E29: =Inputs!C57 -> Pulse Length | G29: =Inputs!D57 -> select[2, 10, 100] mS
B30: =Inputs!C52 -> dp press. Unit | C30: =Inputs!D52 -> [mbar] | E30: =Inputs!C58 -> Pulse Count | G30: =Inputs!D58 -> select [0..9] p/unit | J30: FALSE
B32: Unsicherheiten (typisch)
B51: * Nach Installation und im geeigneten Wartungsintervall ist ein Nullpunktabgleich durchzuführen | J51: V3.07 29.07.2024
B53: © systec Controls Mess- und Regeltechnik GmbH, Lindberghstraße 4, 82178 Puchheim, Germany
B54: www.systec-controls.de - Fon: +49-(0)89-809060 - Fax: +49-(0)89-80906-200 - Email: info@systec-controls.de

Sheet Output Protocol_E
B3: DFC2 Protocoll | F3: =TODAY() -> 2025-12-12
C4: Basic Type | D4: I/O_Variant | E4: Display | F4: Accuracy | G4: Accessories | H4: Test
B5: DFC2 | C5: =Inputs!D13 -> P10 | D5: =Inputs!E40 -> IO | E5: =Inputs!E41 -> D1 | F5: =Inputs!E42 -> DH | G5: =Inputs!E43 -> - | H5: Min recommended diameter is 25mm, please use Venturi
B6: Gas type | C6: =Inputs!D23 -> other gas | D6: =Inputs!E23 -> - | F6: =Inputs!D24 -> 12321 | G6: =Inputs!E24 -> [kg/Nm³] | H6: =Inputs!F24 -> 0°C, 1013,25 hPa
B7: Process Pressure | E7: =Inputs!D26 -> 100 | F7: =Inputs!E26 -> [kPa] | H7: ='Output Protocol_D'!H7 -> Pipe ID | I7: ='Output Protocol_D'!I7 -> 50 | J7: ='Output Protocol_D'!J7 -> [mm]
B8: Process Temperature | E8: =Inputs!D27 -> 19 | F8: =Inputs!E27 -> [°C]
B9: Process max flow | E9: =Inputs!D28 -> 450 | F9: =Inputs!E28 -> [Nm3/h]@0°C/1013,25mbar
B10: ImprooveIT | E10: =Inputs!D20 -> 1 | F10: [-]
B12: Calculated Results | D12: =CELL("dateiname") -> C:\Users\OliverB\Desktop\[deltaflowC2-SelectorV3_08.xlsx]Inputs
I14: Pin | J14: IO
B15: Maximum Flow [MF] | E15: =Inputs!L122 -> 26.81576601 | F15: =F9 -> [Nm3/h]@0°C/1013,25mbar | I15: 1 | J15: =Inputs!K191 -> (brown) GND
B16: Design Flow [DF] | E16: =E9 -> 450 | F16: =F15 -> [Nm3/h]@0°C/1013,25mbar | I16: 2 | J16: =Inputs!K192 -> (white) 4..20mA
B17: Design Pressure | E17: =E7 -> 100 | F17: bar abs | I17: 3 | J17: =Inputs!K193 -> (blue) Supply
B18: Design Temperature | E18: =E8 -> 19 | F18: °C | I18: 4 | J18: =Inputs!K194 -> (black) 0..10VDC
B19: Design Density | E19: =Inputs!O45 -> 11369.06264 | F19: kg/m³ | I19: 5 | J19: =Inputs!K195 -> n.a.
B20: dp at Operational Flow | E20: =Inputs!D34 -> 71.052 | F20: =Inputs!D52 -> [mbar] | I20: 6 | J20: =Inputs!K196 -> n.a.
B21: presser loss at maxflow | E21: =IF(E20*Inputs!D36>0,E20*Inputs!D36,"-") -> 14.8791595 | F21: =F20 -> [mbar] | I21: 7 | J21: =Inputs!K197 -> n.a.
B22: Epsilon Expansionnumber | E22: =Inputs!D35 -> 0.957 | F22: [-] | I22: 8 | J22: =Inputs!K198 -> n.a.
B23: =Inputs!C37 -> DesignFlow is too high or wrong p&T! Please select other Type or Diameter
B24: Display Settings (Option D1)
B25: =Inputs!C47 -> Flow Unit / Time Basis | C25: =Inputs!D47 -> [Nm3/h]@0°C/1013,25mbar | E25: =Inputs!C53 -> Damping | G25: =Inputs!D53 -> select [0..99] sek | I25: =Inputs!C59 -> 0-Suppression | J25: select [0..20%] o.S.
B26: =Inputs!C48 -> Flowspan | C26: =Inputs!D48 -> 26.81576601 | D26: =C25 -> [Nm3/h]@0°C/1013,25mbar | E26: =Inputs!C54 -> Current Out | G26: =Inputs!D54 -> select [Flow/dp/p/T] | I26: =Inputs!C60 -> KEPS | J26: =Inputs!D60 -> 2001.491624
B27: =Inputs!C49 -> Temp. Unit | C27: =Inputs!D49 -> [°C] | E27: =Inputs!C55 -> Voltage Out | G27: =Inputs!D55 -> select [Flow/dp/p/T] | I27: =Inputs!C61 -> K Analog | J27: =Inputs!D61 -> 314042.8655
B28: =Inputs!C50 -> Press. Unit | C28: =Inputs!D50 -> [kPa] | E28: =Inputs!C56 -> Modbus Brate | G28: =Inputs!D56 -> select [4800..38400]
B29: =Inputs!C51 -> T. type | C29: =Inputs!D51 -> Pitot | E29: =Inputs!C57 -> Pulse Length | G29: =Inputs!D57 -> select[2, 10, 100] mS
B30: =Inputs!C52 -> dp press. Unit | C30: =Inputs!D52 -> [mbar] | E30: =Inputs!C58 -> Pulse Count | G30: =Inputs!D58 -> select [0..9] p/unit | J30: FALSE
B32: Uncertaincy (typical)
B51: * Please proceed zero offset after installation and in an adequate service intaervall | J51: ='Output Protocol_D'!J51 -> V3.07 29.07.2024
B53: © systec Controls Mess- und Regeltechnik GmbH, Lindberghstraße 4, 82178 Puchheim, Germany
B54: www.systec-controls.de - Fon: +49-(0)89-809060 - Fax: +49-(0)89-80906-200 - Email: info@systec-controls.de

Sheet Berechnung Unsicherheit (hidden)
B2: Berechnung Unsicherheit
B4: Messbereich max | D4: =Inputs!D48 -> 26.81576601 | E4: =Inputs!D47 -> [Nm3/h]@0°C/1013,25mbar
B5: Messbereich kunde | D5: =Inputs!D28 -> 450 | E5: =Inputs!E28 -> [Nm3/h]@0°C/1013,25mbar | F5: =IF(D5>0.25*D4,D5,0.25*D4) -> 450
B6: dp Kunde | D6: ='Output Protocol_E'!$E$20 -> 71.052 | E6: =Inputs!E34 -> [mbar]
B7: p Design | D7: =Inputs!N57/100000 -> 1 | E7: [bara]
B8: T Design | D8: =Inputs!N66 -> 292.15 | E8: [K]
B9: dp Nullpunkt | D9: 0.1 | E9: [mbar]
B11: ="Flow "&E5 -> Flow [Nm3/h]@0°C/1013,25mbar | C11: dp [mbar] | D11: Uncertaincy o.V. Std | E11: Uncertaincy o.S. Std | F11: Uvertainca o.V. HP | I11: Unsicherhiet dp d.M. | J11: Unsicherheit Dichte | K11: Uncertaincy absolute | L11: Uncertaincy o.S. [DF] | M11: Uncertaincy o.S. [MF]
B12: =D5 -> 450 | C12: =(B12/D$5)^2*D$6 -> 71.052 | D12: =0.03*F$5/B12 -> 0.03 | F12: =D12/2 -> 0.015 | I12: =(1+(D$9+0.01*C12)/C12)^0.5-1 -> 0.005687535926 | J12: =((1+0.015/D7)*(1+1/D8))^0.5-1 -> 0.00919484872 | K12: =IF('Output Protocol_E'!F$5="DH",(I12^2+J12^2)^0.5,(I12^2+J12^2)^0.5+0.02) -> 0.01081172086 | L12: =K12*B12/D$5 -> 0.01081172086 | M12: =I12*B12/D$4 -> 0.0954435225
B13: =B12-0.05*D$5 -> 427.5 | C13: =(B13/D$5)^2*D$6 -> 64.12443 | D13: 0.03157894737 | F13: 0.01578947368 | I13: =(1+(D$9+0.01*C13)/C13)^0.5-1 -> 0.005763127209 | J13: =J12 -> 0.00919484872 | K13: =IF('Output Protocol_E'!F$5="DH",(I13^2+J13^2)^0.5,(I13^2+J13^2)^0.5+0.02) -> 0.01085167629 | L13: =K13*B13/D$5 -> 0.01030909247 | M13: =I13*B13/D$4 -> 0.09187643122
B14: =B13-0.05*D$5 -> 405 | C14: 57.55212 | D14: 0.03333333333 | F14: 0.01666666667 | I14: 0.005851656783 | J14: =J13 -> 0.00919484872 | K14: =IF('Output Protocol_E'!F$5="DH",(I14^2+J14^2)^0.5,(I14^2+J14^2)^0.5+0.02) -> 0.01089895087 | L14: 0.009809055784 | M14: 0.08837789664
B15: 382.5 | C15: 51.33507 | D15: 0.03529411765 | F15: 0.01764705882 | I15: 0.005956254539 | J15: 0.00919484872 | K15: =IF('Output Protocol_E'!F$5="DH",(I15^2+J15^2)^0.5,(I15^2+J15^2)^0.5+0.02) -> 0.0109554649 | L15: 0.009312145163 | M15: 0.08495999554
B16: 360 | C16: 45.47328 | D16: 0.0375 | F16: 0.01875 | I16: 0.006081057183 | J16: 0.00919484872 | K16: =IF('Output Protocol_E'!F$5="DH",(I16^2+J16^2)^0.5,(I16^2+J16^2)^0.5+0.02) -> 0.0110238151 | L16: 0.008819052083 | M16: 0.08163781652
B17: 337.5 | C17: 39.96675 | D17: 0.04 | F17: 0.02 | I17: 0.006231623362 | J17: 0.00919484872 | K17: =IF('Output Protocol_E'!F$5="DH",(I17^2+J17^2)^0.5,(I17^2+J17^2)^0.5+0.02) -> 0.01110758177 | L17: 0.008330686325 | M17: 0.07843046078
B18: 315 | C18: 34.81548 | D18: 0.04285714286 | F18: 0.02142857143 | I18: 0.006415563049 | J18: 0.00919484872 | K18: =IF('Output Protocol_E'!F$5="DH",(I18^2+J18^2)^0.5,(I18^2+J18^2)^0.5+0.02) -> 0.01121181039 | L18: 0.007848267273 | M18: 0.07536246994
B19: 292.5 | C19: 30.01947 | D19: 0.04615384615 | F19: 0.02307692308 | I19: 0.006643517539 | J19: 0.00919484872 | K19: =IF('Output Protocol_E'!F$5="DH",(I19^2+J19^2)^0.5,(I19^2+J19^2)^0.5+0.02) -> 0.01134378986 | L19: 0.007373463406 | M19: 0.07246590976
B20: 270 | C20: 25.57872 | D20: 0.05 | F20: 0.025 | I20: 0.00693073236 | J20: 0.00919484872 | K20: =IF('Output Protocol_E'!F$5="DH",(I20^2+J20^2)^0.5,(I20^2+J20^2)^0.5+0.02) -> 0.01151435166 | L20: 0.006908610993 | M20: 0.06978348992
B21: 247.5 | C21: 21.49323 | D21: 0.05454545455 | F21: 0.02727272727 | I21: 0.007299671313 | J21: 0.00919484872 | K21: =IF('Output Protocol_E'!F$5="DH",(I21^2+J21^2)^0.5,(I21^2+J21^2)^0.5+0.02) -> 0.01174012114 | L21: 0.006457066624 | M21: 0.06737337464
B22: 225 | C22: 17.763 | D22: 0.06 | F22: 0.03 | I22: 0.007784540302 | J22: 0.00919484872 | K22: =IF('Output Protocol_E'!F$5="DH",(I22^2+J22^2)^0.5,(I22^2+J22^2)^0.5+0.02) -> 0.01204758526 | L22: 0.006023792632 | M22: 0.06531685751
B23: 202.5 | C23: 14.38803 | D23: 0.06666666667 | F23: 0.03333333333 | I23: 0.008439498342 | J23: 0.00919484872 | K23: =IF('Output Protocol_E'!F$5="DH",(I23^2+J23^2)^0.5,(I23^2+J23^2)^0.5+0.02) -> 0.01248080026 | L23: 0.005616360119 | M23: 0.06373110555
B24: 180 | C24: 11.36832 | D24: 0.075 | F24: 0.0375 | I24: 0.009354434521 | J24: 0.00919484872 | K24: =IF('Output Protocol_E'!F$5="DH",(I24^2+J24^2)^0.5,(I24^2+J24^2)^0.5+0.02) -> 0.01311680938 | L24: 0.00524672375 | M24: 0.0627913524
B25: 157.5 | C25: 8.70387 | D25: 0.08571428571 | F25: 0.04285714286 | I25: 0.01068746019 | J25: 0.00919484872 | K25: =IF('Output Protocol_E'!F$5="DH",(I25^2+J25^2)^0.5,(I25^2+J25^2)^0.5+0.02) -> 0.01409847681 | L25: 0.004934466883 | M25: 0.06277184023
B26: 135 | C26: 6.39468 | D26: 0.1 | F26: 0.05 | I26: 0.01273787284 | J26: 0.00919484872 | K26: =IF('Output Protocol_E'!F$5="DH",(I26^2+J26^2)^0.5,(I26^2+J26^2)^0.5+0.02) -> 0.01570982646 | L26: 0.004712947939 | M26: 0.06412693311
B27: 112.5 | C27: 4.44075 | D27: 0.12 | F27: 0.06 | I27: 0.01612928247 | J27: 0.00919484872 | K27: =IF('Output Protocol_E'!F$5="DH",(I27^2+J27^2)^0.5,(I27^2+J27^2)^0.5+0.02) -> 0.01856607109 | L27: 0.004641517773 | M27: 0.06766706856
B28: 90 | C28: 2.84208 | D28: 0.15 | F28: 0.075 | I28: 0.022343141 | J28: 0.00919484872 | K28: =IF('Output Protocol_E'!F$5="DH",(I28^2+J28^2)^0.5,(I28^2+J28^2)^0.5+0.02) -> 0.02416115048 | L28: 0.004832230096 | M28: 0.07498882145
B29: 67.5 | C29: 1.59867 | D29: 0.2 | F29: 0.1 | I29: 0.03564086263 | J29: 0.00919484872 | K29: =IF('Output Protocol_E'!F$5="DH",(I29^2+J29^2)^0.5,(I29^2+J29^2)^0.5+0.02) -> 0.03680782976 | L29: 0.005521174465 | M29: 0.08971432053
B30: 45 | C30: 0.71052 | D30: 0.3 | F30: 0.15 | I30: 0.07272642914 | J30: 0.00919484872 | K30: =IF('Output Protocol_E'!F$5="DH",(I30^2+J30^2)^0.5,(I30^2+J30^2)^0.5+0.02) -> 0.07330538001 | L30: 0.007330538001 | M30: 0.1220434766
B31: 22.5 | C31: 0.17763 | D31: 0.6 | F31: 0.3 | I31: 0.2541801972 | J31: 0.00919484872 | K31: =(I31^2+J31^2)^0.5 -> 0.2543464525 | L31: 0.01271732263 | M31: 0.2132720891

Sheet P10 Druckverlust (hidden)
B2: ID[mm] | C2: Blockage | D2: ploss[%]DF12 | E2: Ploss DFC
B3: 25 | C3: =IF(B3<30,(24*15)/(B3^2*PI()/4),((30*12)+(B3-30)*15)/(B3^2*PI()/4)) -> 0.7333859778 | D3: 32 | E3: =D3*0.015 -> 0.48
B4: 30 | C4: =IF(B4<30,(24*15)/(B4^2*PI()/4),((30*12)+(B4-30)*15)/(B4^2*PI()/4)) -> 0.5092958179 | D4: 21.1 | E4: =D4*0.015 -> 0.3165
B5: 35 | C5: 0.4521299608 | D5: 18.4 | E5: 0.276
B6: 40 | C6: 0.4058451049 | D6: 16.3 | E6: 0.2445
B7: 50 | C7: 0.3361352398 | D7: 13.4 | E7: 0.201
B8: 60 | C8: 0.2864788976 | D8: 11.4 | E8: 0.171
B9: 70 | C9: 0.2494510128 | D9: 10 | E9: 0.15
B10: 80 | C10: 0.2208274835 | D10: 8.9 | E10: 0.1335
B11: 100 | C11: 0.1795267758 | D11: 7.4 | E11: 0.111
B12: 150 | C12: 0.1222309963 | D12: =D11/B12*B$11 -> 4.933333333 | E12: 0.074
B13: 200 | C13: 0.09262817688 | D13: =D12/B13*B$11 -> 2.466666667 | E13: 0.037
B14: 500 | C14: 0.03773882011 | D14: =D13/B14*B$11 -> 0.4933333333 | E14: 0.0074
B15: 5000 | C15: 0.003815134972 | D15: =D14/B15*B$11 -> 0.009866666667 | E15: 0.000148
